bitfinex/quotes_SOLUSD_20250118
["timestamp","ask_amount","ask_price","bid_price","bid_amount"]
[1737206016187,19.80046614,241.79,241.72,20.0]
[1737206017091,23.776884,241.78,241.72,20.0]
[1737206018183,23.776884,241.78,241.69,19.80046614]
[1737206018184,19.80046614,241.77,241.68,0.03]
[1737206018383,20.57624377,241.77,241.7,20.0]
[1737206018778,23.776884,241.76,241.7,20.0]
[1737206018981,19.80046614,241.77,241.7,20.0]
[1737206019188,19.80046614,241.79,241.69,19.80046614]
[1737206019499,23.776884,241.78,241.69,19.80046614]
[1737206019799,23.776884,241.76,241.69,19.80046614]
[1737206020568,19.80046614,241.75,241.68,0.03]
[1737206023394,1.5773,241.83,241.72,19.80046614]
[1737206023692,19.80046614,241.79,241.7,19.80046614]
[1737206023882,19.80046614,241.77,241.68,19.83046614]
[1737206024197,23.776884,241.76,241.68,0.03]
[1737206024391,23.776884,241.76,241.7,20.0]
[1737206024778,0.77576357,241.87,241.78,20.0]
[1737206024988,1.6818,241.94,241.78,20.0]
[1737206024989,19.80046614,241.91,241.8,19.80046614]
[1737206025293,0.77535673,241.92,241.82,19.80046614]
[1737206025792,23.776884,241.83,241.68,0.03]
[1737206025972,19.80046614,241.79,241.7,19.80046614]
[1737206026174,24.5525666,241.78,241.68,19.83046614]
[1737206026575,23.776884,241.76,241.68,19.83046614]
[1737206026875,19.80046614,241.75,241.68,0.03]
[1737206028097,6.4351,241.74,241.68,0.03]
[1737206028288,19.80046614,241.69,241.68,0.03]
[1737206028591,20.57659425,241.7,241.68,0.03]
[1737206029298,23.776884,241.69,241.68,0.03]
[1737206030298,11.584156,241.61,241.6,0.03]
[1737206031878,35.36104,241.61,241.6,0.03]
[1737206032190,36.13731007,241.61,241.6,0.03]
[1737206032392,36.13731007,241.61,241.43,0.03]
[1737206032393,31.839784,241.6,241.43,0.03]
[1737206032695,19.80046614,241.49,241.43,0.03]
[1737206033996,20.57712853,241.49,241.43,0.03]
[1737206034196,23.776884,241.48,241.43,0.03]
[1737206034694,25.404684,241.47,241.43,0.03]
[1737206034887,1.6278,241.47,241.43,0.03]
[1737206035086,19.80046614,241.48,241.43,0.03]
[1737206040102,20.57709882,241.47,241.43,0.03]
[1737206040488,63.37781628,241.44,241.43,0.03]
[1737206040897,0.77688417,241.52,241.43,0.03]
[1737206041202,19.80046614,241.46,241.43,0.03]
[1737206041699,19.80046614,241.44,241.43,0.03]
[1737206044003,43.57735014,241.44,241.43,0.03]
[1737206044194,0.21855,241.4,241.39,0.03]
[1737206044397,20.01901614,241.4,241.39,0.03]
[1737206047004,43.79590014,241.4,241.39,0.03]
[1737206047212,47.93840014,241.4,241.39,0.03]
[1737206047582,23.776884,241.39,241.3,0.03]
[1737206047796,19.80046614,241.31,241.3,0.03]
[1737206048011,43.57735014,241.31,241.3,0.03]
[1737206048303,44.35473388,241.31,241.3,0.03]
[1737206049885,24.55426774,241.31,241.3,0.03]
[1737206050086,0.77725166,241.31,241.3,0.03]
[1737206050285,19.80046614,241.31,241.3,0.03]
[1737206051097,43.57735014,241.31,241.3,0.03]
[1737206051294,44.35462455,241.31,241.3,0.03]
[1737206051690,48.49862455,241.31,241.3,0.03]
[1737206051901,28.69815841,241.31,241.3,0.03]
[1737206052102,48.49862455,241.31,241.3,0.03]
[1737206053491,19.80046614,241.22,241.21,0.03]
[1737206053690,43.57735014,241.22,241.21,0.03]
[1737206054707,19.80046614,241.12,241.07,6.6375]
[1737206056510,19.80046614,241.14,241.1,20.0]
[1737206057390,19.80046614,241.16,241.1,20.0]
[1737206057591,0.77763901,241.2,241.07,6.6375]
[1737206057592,19.80046614,241.22,241.15,20.0]
[1737206057809,19.80046614,241.22,241.17,20.0]
[1737206058108,19.80046614,241.24,241.19,20.0]
[1737206058296,19.80046614,241.26,241.21,20.0]
[1737206059715,19.80046614,241.24,241.19,20.0]
[1737206060515,0.77731733,241.29,241.12,138.9629]
[1737206060516,19.80046614,241.22,241.12,21.46336614]
[1737206060813,19.80046614,241.22,241.17,0.03]
[1737206061114,19.80046614,241.2,241.17,0.03]
[1737206061296,19.80046614,241.18,241.17,0.03]
[1737206061995,43.57735014,241.18,241.17,0.03]
[1737206062402,44.35503784,241.18,241.17,0.03]
[1737206064632,27.923284,241.17,241.05,0.03]
[1737206064918,43.57735014,241.06,241.05,0.03]
[1737206065100,44.3555452,241.06,241.05,0.03]
[1737206065497,24.55507906,241.06,241.05,0.03]
[1737206065697,44.3555452,241.06,241.05,0.03]
[1737206066725,19.80046614,241.06,241.05,0.03]
[1737206067929,43.57735014,241.06,241.05,0.03]
[1737206068113,19.80046614,241.06,241.05,0.03]
[1737206071508,19.80046614,241.06,240.96,20.0]
[1737206071819,19.80046614,241.01,240.96,20.0]
[1737206074324,0.77806111,241.07,240.96,20.0]
[1737206074623,0.77805496,241.12,241.0,20.0]
[1737206074825,19.80046614,241.03,241.0,20.0]
[1737206075033,19.80046614,241.01,241.0,20.0]
[1737206075331,19.80046614,241.01,240.95,0.03]
[1737206075618,19.80046614,240.99,240.95,0.03]
[1737206075804,0.77804149,241.07,240.95,0.03]
[1737206075805,19.80046614,241.01,240.95,0.03]
[1737206076632,19.80046614,241.03,240.98,20.0]
[1737206076808,19.80046614,241.05,241.0,20.0]
[1737206077006,19.80046614,241.07,241.02,20.0]
[1737206077208,19.80046614,241.09,241.02,20.0]
[1737206077420,19.80046614,241.11,241.04,20.0]
[1737206078929,19.80046614,241.09,241.04,20.0]
[1737206079920,2.31663349,241.16,241.01,6.0937]
[1737206079921,19.80046614,241.05,241.01,6.0937]
[1737206080125,19.80046614,241.05,240.97,19.80046614]
[1737206080324,23.776884,241.11,240.95,6.1237]
[1737206080501,19.80046614,241.02,240.95,6.1237]
[1737206080703,19.80046614,241.02,240.98,20.0]
[1737206081014,19.80046614,241.02,240.95,6.1237]
[1737206081829,19.80046614,241.02,240.98,20.0]
[1737206082710,19.80046614,241.06,241.0,20.0]
[1737206082944,19.80046614,241.1,241.04,20.0]
[1737206083610,19.80046614,241.1,241.06,20.0]
[1737206083813,19.80046614,241.12,241.06,20.0]
[1737206084321,19.80046614,241.1,241.04,20.0]
[1737206086745,19.80046614,241.1,241.06,20.0]
[1737206088426,0.063,241.12,241.09,19.80046614]
[1737206088622,0.063,241.12,241.11,19.80046614]
[1737206088845,0.063,241.12,241.11,43.57735014]
[1737206089648,0.063,241.12,241.11,180.87735014]
[1737206090335,0.063,241.12,241.11,19.80046614]
[1737206093021,0.063,241.12,241.09,23.776884]
[1737206093228,0.063,241.12,241.11,39.80046614]
[1737206094430,0.063,241.12,241.11,39.30046614]
[1737206095653,0.063,241.12,241.09,19.80046614]
[1737206095947,0.063,241.12,241.05,19.80046614]
[1737206096146,0.063,241.12,241.07,19.80046614]
[1737206096455,0.063,241.12,241.04,6.3211]
[1737206096456,0.063,241.12,241.05,19.80046614]
[1737206097458,0.063,241.12,241.07,19.80046614]
[1737206098654,0.063,241.12,241.1,20.0]
[1737206100443,0.063,241.12,241.11,39.80046614]
[1737206101042,19.86346614,241.12,241.05,0.03]
[1737206101356,19.80046614,241.06,241.05,0.03]
[1737206103153,0.063,241.12,241.08,20.0]
[1737206103364,0.063,241.12,241.1,20.0]
[1737206103528,0.063,241.12,241.11,19.80046614]
[1737206104145,0.063,241.12,241.11,157.10046614]
[1737206107258,0.063,241.12,241.09,19.80046614]
[1737206107449,0.063,241.12,241.07,163.42156614]
[1737206107651,0.063,241.12,241.11,20.0]
[1737206108955,0.063,241.12,241.11,177.10046614]
[1737206109155,0.063,241.12,241.11,200.87735014]
[1737206109662,0.063,241.12,241.11,177.10046614]
[1737206110957,0.063,241.12,241.11,200.87735014]
[1737206112162,0.063,241.12,241.11,177.10046614]
[1737206117374,0.063,241.12,241.11,19.80046614]
[1737206117550,0.063,241.12,241.09,19.80046614]
[1737206117754,0.063,241.12,241.07,143.6211]
[1737206117755,0.063,241.12,241.07,19.80046614]
[1737206117961,19.80046614,241.09,241.05,0.03]
[1737206118154,19.80046614,241.07,241.05,0.03]
[1737206118557,0.77800241,241.06,241.05,0.03]
[1737206119373,19.80046614,241.07,241.05,0.03]
[1737206119578,20.57848358,241.07,241.05,0.03]
[1737206120674,19.80046614,241.07,241.05,0.03]
[1737206121168,23.776884,241.04,240.96,0.03]
[1737206121468,19.80046614,240.97,240.96,0.03]
[1737206121888,65.04051628,240.97,240.96,0.03]
[1737206122191,45.24005014,240.97,240.96,0.03]
[1737206122570,21.46316614,240.97,240.96,0.03]
[1737206123171,22.24164165,240.97,240.96,0.03]
[1737206123794,46.01852565,240.97,240.96,0.03]
[1737206124294,27.926884,240.96,240.89,0.03]
[1737206124478,19.80046614,240.9,240.89,0.03]
[1737206125293,19.80046614,240.92,240.89,0.03]
[1737206126060,19.80046614,240.9,240.89,0.03]
[1737206132196,19.80046614,240.91,240.89,0.03]
[1737206133401,0.77828874,240.95,240.89,0.03]
[1737206133402,12.40752006,240.9,240.89,0.03]
[1737206134990,23.776884,240.89,240.73,0.03]
[1737206135187,12.40752006,240.81,240.73,0.03]
[1737206135591,13.18636106,240.81,240.73,0.03]
[1737206136377,36.96324506,240.81,240.73,0.03]
[1737206137399,44.43428064,240.81,240.73,0.03]
[1737206137896,23.776884,240.8,240.73,0.03]
[1737206138083,19.87855564,240.74,240.73,0.03]
[1737206138278,64.31314314,240.74,240.73,0.03]
[1737206138480,23.776884,240.73,240.71,0.03]
[1737206138692,40.5363826,240.72,240.71,0.03]
[1737206138888,20.0,240.65,240.47,6.0701]
[1737206139195,63.65543964,240.65,240.47,25.94865564]
[1737206139402,63.65543964,240.65,240.47,6.0701]
[1737206139403,19.87855564,240.54,240.47,6.0701]
[1737206139998,19.87855564,240.5,240.41,25.94865564]
[1737206140176,19.87855564,240.44,240.37,19.87855564]
[1737206140372,19.87855564,240.46,240.37,19.87855564]
[1737206140579,19.87855564,240.52,240.43,19.87855564]
[1737206140899,1.6644,240.56,240.36,19.87855564]
[1737206140900,19.87855564,240.56,240.47,19.87855564]
[1737206141787,19.87855564,240.52,240.43,19.87855564]
[1737206142392,20.65815691,240.6,240.4,19.87855564]
[1737206142393,19.87855564,240.48,240.4,19.87855564]
[1737206142687,19.87855564,240.5,240.4,19.87855564]
[1737206142883,19.87855564,240.45,240.36,19.87855564]
[1737206143402,19.87855564,240.45,240.39,20.0]
[1737206143584,19.87855564,240.45,240.36,19.87855564]
[1737206144703,19.87855564,240.45,240.39,20.0]
[1737206145504,4.93764501,240.52,240.39,20.0]
[1737206145816,21.53440806,240.6,240.4,19.87855564]
[1737206145817,19.87855564,240.5,240.4,19.87855564]
[1737206146882,19.87855564,240.54,240.44,19.87855564]
[1737206147100,19.87855564,240.5,240.42,19.87855564]
[1737206147307,19.87855564,240.48,240.39,19.87855564]
[1737206147814,24.37855564,240.6,240.36,0.03]
[1737206147815,19.87855564,240.43,240.36,0.03]
[1737206148105,19.87855564,240.4,240.36,0.03]
[1737206148498,19.87855564,240.38,240.36,0.03]
[1737206149902,4.1596,240.41,240.36,0.03]
[1737206150108,19.87855564,240.37,240.36,0.03]
[1737206151201,23.776884,240.36,240.22,26.12075564]
[1737206151405,19.87855564,240.3,240.2,19.87855564]
[1737206152109,19.87855564,240.28,240.18,19.87855564]
[1737206153497,19.87855564,240.32,240.22,19.87855564]
[1737206154108,19.87855564,240.3,240.21,19.87855564]
[1737206154695,19.87855564,240.3,240.19,20.0]
[1737206154995,19.87855564,240.22,240.12,19.87855564]
[1737206155307,19.87855564,240.22,240.14,19.87855564]
[1737206155807,19.87855564,240.22,240.12,19.87855564]
[1737206156195,19.87855564,240.22,240.14,19.87855564]
[1737206156389,19.87855564,240.26,240.19,20.0]
[1737206156591,19.87855564,240.28,240.19,20.0]
[1737206156791,19.87855564,240.3,240.19,20.0]
[1737206156992,19.87855564,240.3,240.23,20.0]
[1737206157312,0.78037786,240.35,240.17,6.3428]
[1737206157313,19.87855564,240.26,240.17,6.3428]
[1737206158194,19.87855564,240.26,240.19,20.0]
[1737206158395,19.87855564,240.26,240.18,19.87855564]
[1737206158813,19.87855564,240.28,240.2,19.87855564]
[1737206158999,19.87855564,240.28,240.2,39.87855564]
[1737206159318,19.87855564,240.26,240.2,20.0]
[1737206159725,19.87855564,240.3,240.22,20.0]
[1737206160117,19.87855564,240.32,240.23,19.87855564]
[1737206160424,19.87855564,240.33,240.23,19.87855564]
[1737206160719,19.87855564,240.29,240.22,20.0]
[1737206160926,19.87855564,240.27,240.17,26.22135564]
[1737206161222,19.87855564,240.27,240.2,20.0]
[1737206161422,24.03905564,240.36,240.2,20.0]
[1737206161423,19.87855564,240.31,240.23,19.87855564]
[1737206161627,19.87855564,240.33,240.26,20.0]
[1737206162928,19.87855564,240.33,240.23,19.87855564]
[1737206163631,19.87855564,240.33,240.26,20.0]
[1737206163826,19.87855564,240.31,240.26,20.0]
[1737206164126,19.87855564,240.31,240.22,19.87855564]
[1737206164313,19.87855564,240.31,240.22,20.19765509]
[1737206167326,19.87855564,240.33,240.24,19.87855564]
[1737206167533,19.87855564,240.33,240.27,20.0]
[1737206168730,19.87855564,240.35,240.26,39.87855564]
[1737206168908,19.87855564,240.35,240.27,20.0]
[1737206169222,19.87855564,240.33,240.27,20.0]
[1737206169817,19.87855564,240.33,240.19,0.3189941]
[1737206169818,19.87855564,240.31,240.19,0.3189941]
[1737206170020,19.87855564,240.29,240.2,19.87855564]
[1737206170608,19.87855564,240.31,240.22,19.87855564]
[1737206170807,19.87855564,240.33,240.24,19.87855564]
[1737206173228,19.87855564,240.35,240.26,19.87855564]
[1737206173432,19.87855564,240.35,240.27,0.31879282]
[1737206174138,0.063,240.36,240.31,20.0]
[1737206174435,1.5173,240.46,240.36,23.776884]
[1737206174436,19.87855564,240.46,240.36,23.776884]
[1737206174738,19.87855564,240.48,240.4,19.87855564]
[1737206174940,19.87855564,240.52,240.44,20.0]
[1737206175123,19.87855564,240.56,240.45,29.967384]
[1737206175432,19.87855564,240.56,240.49,23.776884]
[1737206175635,19.87855564,240.56,240.51,20.0]
[1737206175813,19.87855564,240.58,240.51,20.0]
[1737206176016,0.063,240.64,240.51,20.0]
[1737206176017,0.063,240.64,240.55,20.0]
[1737206176214,19.94155564,240.64,240.57,20.0]
[1737206176429,19.94155564,240.64,240.58,23.776884]
[1737206176628,0.063,240.64,240.58,43.65543964]
[1737206176827,0.063,240.64,240.61,23.776884]
[1737206177035,19.87855564,240.62,240.54,19.87855564]
[1737206177217,19.87855564,240.6,240.52,19.87855564]
[1737206177538,19.87855564,240.6,240.53,23.776884]
[1737206177835,19.94155564,240.64,240.56,19.87855564]
[1737206178051,19.94155564,240.64,240.54,19.87855564]
[1737206178220,19.94155564,240.64,240.58,20.0]
[1737206178426,0.063,240.64,240.58,20.0]
[1737206178730,19.87855564,240.62,240.54,19.87855564]
[1737206178924,19.87855564,240.62,240.55,20.0]
[1737206179239,19.87855564,240.56,240.44,19.87855564]
[1737206179415,19.87855564,240.51,240.42,19.87855564]
[1737206179621,19.87855564,240.49,240.4,19.87855564]
[1737206180445,24.03485564,240.6,240.42,19.87855564]
[1737206180446,19.87855564,240.51,240.42,19.87855564]
[1737206180612,19.87855564,240.49,240.4,19.87855564]
[1737206180812,19.87855564,240.45,240.36,19.87855564]
[1737206181040,19.87855564,240.47,240.38,19.87855564]
[1737206181223,19.87855564,240.45,240.36,19.87855564]
[1737206181418,0.77974658,240.63,240.43,19.87855564]
[1737206181731,19.87855564,240.56,240.46,19.87855564]
[1737206181934,19.87855564,240.52,240.37,0.31765974]
[1737206182131,19.87855564,240.52,240.41,19.87855564]
[1737206183121,19.87855564,240.52,240.43,19.87855564]
[1737206183326,19.87855564,240.54,240.43,19.87855564]
[1737206185217,19.87855564,240.56,240.47,39.87855564]
[1737206185417,19.87855564,240.62,240.48,0.31749733]
[1737206185616,19.87855564,240.62,240.53,19.87855564]
[1737206185833,0.063,240.64,240.53,19.87855564]
[1737206186035,19.87855564,240.63,240.53,19.87855564]
[1737206186241,19.87855564,240.61,240.51,19.87855564]
[1737206186432,19.87855564,240.55,240.46,19.87855564]
[1737206186637,19.87855564,240.53,240.44,19.87855564]
[1737206187336,19.87855564,240.55,240.44,19.87855564]
[1737206187738,19.87855564,240.59,240.48,19.87855564]
[1737206187946,19.87855564,240.61,240.5,19.87855564]
[1737206188240,19.87855564,240.53,240.43,19.87855564]
[1737206188444,19.87855564,240.49,240.4,6.028]
[1737206188742,19.87855564,240.45,240.36,0.03]
[1737206189126,19.87855564,240.43,240.36,0.03]
[1737206189348,19.87855564,240.48,240.36,0.03]
[1737206189349,19.87855564,240.41,240.36,0.03]
[1737206189642,19.87855564,240.44,240.36,0.03]
[1737206190225,1.5171,240.5,240.36,0.03]
[1737206190226,19.87855564,240.42,240.36,0.03]
[1737206190433,19.87855564,240.44,240.36,0.03]
[1737206190639,19.87855564,240.46,240.36,19.90855564]
[1737206191950,1.5171,240.59,240.42,19.87855564]
[1737206192252,2.29661406,240.59,240.46,19.87855564]
[1737206192426,19.87855564,240.56,240.46,19.87855564]
[1737206193241,19.87855564,240.52,240.42,19.87855564]
[1737206193422,19.87855564,240.58,240.47,19.87855564]
[1737206193825,19.87855564,240.58,240.49,19.87855564]
[1737206194039,19.87855564,240.62,240.53,19.87855564]
[1737206194243,19.94155564,240.64,240.53,19.87855564]
[1737206194424,19.94155564,240.64,240.51,19.87855564]
[1737206194425,19.87855564,240.6,240.51,19.87855564]
[1737206194923,19.87855564,240.6,240.49,19.87855564]
[1737206195546,19.87855564,240.6,240.51,19.87855564]
[1737206195737,19.87855564,240.62,240.52,23.776884]
[1737206196045,19.87855564,240.62,240.53,19.87855564]
[1737206196434,19.94155564,240.64,240.53,19.87855564]
[1737206197242,19.87855564,240.63,240.53,19.87855564]
[1737206197429,0.063,240.64,240.57,19.87855564]
[1737206197739,0.063,240.64,240.59,19.87855564]
[1737206198149,0.063,240.64,240.61,19.87855564]
[1737206198337,0.063,240.64,240.59,19.87855564]
[1737206199544,0.063,240.64,240.57,19.87855564]
[1737206199852,0.063,240.64,240.55,19.87855564]
[1737206200030,19.87855564,240.63,240.55,19.87855564]
[1737206200650,19.94155564,240.64,240.55,19.87855564]
[1737206201251,0.063,240.64,240.55,19.87855564]
[1737206201943,0.063,240.64,240.58,20.0]
[1737206202145,0.063,240.64,240.63,19.87855564]
[1737206202548,0.063,240.64,240.61,19.87855564]
[1737206202851,0.063,240.64,240.63,19.87855564]
[1737206204134,0.063,240.64,240.61,19.87855564]
[1737206204546,0.063,240.64,240.63,39.87855564]
[1737206205546,0.063,240.64,240.63,19.87855564]
[1737206207155,19.94155564,240.64,240.53,19.87855564]
[1737206207446,19.87855564,240.62,240.53,19.87855564]
[1737206207655,19.87855564,240.6,240.51,19.87855564]
[1737206207835,19.87855564,240.62,240.53,19.87855564]
[1737206208929,0.063,240.64,240.57,19.87855564]
[1737206209255,0.063,240.64,240.59,19.87855564]
[1737206210539,0.063,240.64,240.63,19.87855564]
[1737206210844,0.063,240.64,240.63,20.19509069]
[1737206211156,0.063,240.64,240.63,19.87855564]
[1737206211648,0.063,240.64,240.63,43.65543964]
[1737206211827,0.063,240.64,240.63,62.4675111]
[1737206212028,0.063,240.77,240.75,19.87855564]
[1737206212963,0.063,240.77,240.76,24.0925249]
[1737206213657,0.063,240.89,240.84,19.87855564]
[1737206213950,0.063,240.89,240.87,39.87855564]
[1737206214647,0.063,240.89,240.83,19.87855564]
[1737206215046,0.063,240.89,240.81,20.0]
[1737206215249,0.063,240.89,240.86,20.0]
[1737206216939,0.063,240.89,240.88,19.87855564]
[1737206218463,0.063,240.89,240.86,19.87855564]
[1737206219152,0.063,240.89,240.81,19.87855564]
[1737206219959,19.87855564,240.86,240.77,19.87855564]
[1737206220149,19.87855564,240.82,240.73,19.87855564]
[1737206220545,19.87855564,240.82,240.64,10.5559]
[1737206220546,19.87855564,240.8,240.71,19.87855564]
[1737206220744,19.87855564,240.86,240.77,19.87855564]
[1737206221059,1.6322,240.88,240.81,19.87855564]
[1737206222462,1.6322,240.88,240.83,19.87855564]
[1737206223863,1.6322,240.88,240.81,19.87855564]
[1737206224071,19.94155564,240.96,240.85,19.87855564]
[1737206224072,0.063,240.96,240.85,19.87855564]
[1737206224264,0.063,240.96,240.87,19.87855564]
[1737206224860,0.063,240.96,240.88,23.776884]
[1737206225049,0.063,240.96,240.88,145.15037364]
[1737206225362,0.063,240.96,240.88,121.37348964]
[1737206225760,0.063,240.96,240.87,19.87855564]
[1737206226060,19.87855564,240.95,240.85,19.87855564]
[1737206226259,30.14835564,240.95,240.85,19.87855564]
[1737206227176,1.6322,240.91,240.85,19.87855564]
[1737206227979,6.1195,240.95,240.87,19.87855564]
[1737206228465,0.063,240.96,240.87,19.87855564]
[1737206230056,0.063,240.96,240.87,141.25204528]
[1737206231683,0.063,240.96,240.95,20.0]
[1737206231859,0.063,240.96,240.95,59.75711128]
[1737206232051,0.063,240.96,240.95,39.87855564]
[1737206237782,0.063,240.96,240.95,204.90748492]
[1737206239388,0.063,240.96,240.95,161.25204528]
[1737206241890,0.063,240.96,240.95,204.90748492]
[1737206243890,0.063,241.11,240.95,204.90748492]
[1737206244184,0.063,241.11,241.06,19.87855564]
[1737206244686,0.063,241.11,241.08,19.87855564]
[1737206244869,0.063,241.11,241.1,19.87855564]
[1737206248487,0.063,241.11,241.08,19.87855564]
[1737206248995,0.063,241.11,241.03,6.3018]
[1737206248996,0.063,241.11,241.1,39.87855564]
[1737206251176,0.063,241.11,241.1,161.25204528]
[1737206255194,0.063,241.11,241.1,39.87855564]
[1737206258585,0.063,241.11,241.1,19.87855564]
[1737206258783,0.063,241.11,240.96,121.37348964]
[1737206258784,0.063,241.11,240.97,1.6837997]
[1737206259025,0.063,241.11,241.06,19.87855564]
[1737206259305,0.063,241.11,241.09,20.0]
[1737206260210,0.063,241.11,241.08,19.87855564]
[1737206260507,0.063,241.11,241.1,39.87855564]
[1737206261507,0.063,241.11,241.1,20.0]
[1737206261810,0.063,241.11,241.06,19.87855564]
[1737206261987,0.063,241.11,241.07,20.0]
[1737206262188,0.063,241.11,241.04,19.87855564]
[1737206262810,0.063,241.11,241.08,19.87855564]
[1737206263005,0.063,241.11,241.1,19.87855564]
[1737206263608,0.063,241.11,241.08,19.87855564]
[1737206264113,0.063,241.11,241.04,19.87855564]
[1737206265202,19.94155564,241.11,241.04,19.87855564]
[1737206265409,19.94155564,241.11,240.96,6.2714]
[1737206265410,19.94155564,241.11,241.02,19.87855564]
[1737206266015,19.87855564,241.09,241.0,19.87855564]
[1737206266506,19.94155564,241.11,241.02,19.87855564]
[1737206266719,0.063,241.11,241.06,19.87855564]
[1737206266891,0.063,241.11,241.08,19.87855564]
[1737206267384,0.063,241.11,241.1,20.0]
[1737206268196,0.063,241.11,241.08,19.87855564]
[1737206268401,0.063,241.11,241.1,20.0]
[1737206273715,0.063,241.11,241.1,12.38197491]
[1737206275595,0.063,241.11,241.1,173.45885891]
[1737206275997,0.063,241.12,241.1,173.45885891]
[1737206276197,0.063,241.12,241.11,161.076884]
[1737206276403,0.063,241.21,241.14,20.0]
[1737206276600,0.063,241.21,241.2,12.38197491]
[1737206276805,0.063,241.21,241.2,36.15885891]
[1737206277000,0.063,241.21,241.2,185.84083382]
[1737206277199,0.063,241.22,241.21,161.076884]
[1737206277404,0.063,241.35,241.28,20.0]
[1737206277615,0.063,241.35,241.34,20.0]
[1737206277793,0.063,241.35,241.34,12.38197491]
[1737206278725,0.063,241.35,241.34,36.15885891]
[1737206280637,0.21855,241.4,241.38,20.0]
[1737206280924,0.063,241.46,241.45,12.38197491]
[1737206281092,0.063,241.46,241.45,132.06394982]
[1737206281296,0.063,241.46,241.45,139.42675244]
[1737206282092,0.063,241.6,241.45,139.42675244]
[1737206282093,0.063,241.6,241.48,20.0]
[1737206282291,0.063,241.6,241.55,19.74477753]
[1737206282712,0.063,241.6,241.57,19.74477753]
[1737206283608,0.063,241.6,241.47,6.5234]
[1737206283609,0.063,241.6,241.59,39.74477753]
[1737206284021,0.063,241.6,241.57,19.74477753]
[1737206285228,0.063,241.6,241.53,19.74477753]
[1737206285424,0.063,241.6,241.51,19.74477753]
[1737206285627,0.063,241.6,241.54,20.0]
[1737206285808,0.063,241.6,241.58,19.74477753]
[1737206286205,0.063,241.6,241.56,19.74477753]
[1737206286731,0.063,241.6,241.54,19.74477753]
[1737206287021,4.2021,241.6,241.52,19.74477753]
[1737206287227,0.063,241.6,241.52,19.74477753]
[1737206287534,0.063,241.6,241.51,19.74477753]
[1737206288412,19.74477753,241.59,241.51,19.74477753]
[1737206288611,25.286684,241.58,241.49,19.74477753]
[1737206288817,19.74477753,241.55,241.47,19.74477753]
[1737206289723,19.74477753,241.49,241.37,19.74477753]
[1737206289924,19.74477753,241.46,241.37,19.74477753]
[1737206290110,4.91616409,241.57,241.42,19.74477753]
[1737206290309,19.74477753,241.52,241.42,19.74477753]
[1737206290716,19.74477753,241.5,241.42,19.74477753]
[1737206290922,19.74477753,241.5,241.4,19.74477753]
[1737206291120,19.74477753,241.5,241.42,19.74477753]
[1737206291424,19.74477753,241.52,241.42,19.74477753]
[1737206291741,19.74477753,241.52,241.33,143.8551]
[1737206291742,19.74477753,241.52,241.44,19.74477753]
[1737206291912,19.74477753,241.56,241.48,19.74477753]
[1737206292112,19.74477753,241.56,241.46,19.74477753]
[1737206293246,19.74477753,241.56,241.48,19.74477753]
[1737206294120,1.5098,241.58,241.5,19.74477753]
[1737206294423,1.5098,241.58,241.54,19.74477753]
[1737206294619,0.063,241.6,241.54,19.74477753]
[1737206296229,0.063,241.6,241.56,19.74477753]
[1737206296430,0.063,241.6,241.57,23.776884]
[1737206298139,0.063,241.6,241.56,19.74477753]
[1737206298347,0.063,241.6,241.58,19.74477753]
[1737206299443,0.063,241.6,241.59,23.776884]
[1737206299949,19.80777753,241.6,241.5,19.74477753]
[1737206300120,19.74477753,241.58,241.5,19.74477753]
[1737206300322,19.74477753,241.54,241.46,19.74477753]
[1737206300523,19.74477753,241.52,241.44,19.74477753]
[1737206300723,19.74477753,241.5,241.42,19.74477753]
[1737206301026,6.5685,241.58,241.48,19.74477753]
[1737206301225,6.5685,241.58,241.46,19.74477753]
[1737206301226,19.74477753,241.54,241.46,19.74477753]
[1737206301429,19.74477753,241.5,241.4,19.74477753]